bitfinex-derivatives/quotes_SOLF0:USTF0_20250705
["timestamp","ask_amount","ask_price","bid_price","bid_amount"]
[1751729095206,5.95824408,147.66,147.63,2.98724852]
[1751729095407,10.97432855,147.65,147.63,2.98724852]
[1751729095702,5.01608447,147.64,147.63,2.98724852]
[1751729096406,6.7711,147.65,147.63,2.98724852]
[1751729097205,6.7711,147.65,147.63,9.75914852]
[1751729097407,4.99240094,147.64,147.61,240.0]
[1751729097601,2.98724852,147.65,147.61,242.98724852]
[1751729097807,6.772,147.63,147.61,48.82724852]
[1751729098906,6.772,147.63,147.61,55.60014852]
[1751729099106,6.7717,147.64,147.61,55.60014852]
[1751729102912,6.7717,147.64,147.62,6.7724]
[1751729103705,9.75854852,147.65,147.62,6.7724]
[1751729105522,6.7715,147.64,147.62,6.7724]
[1751729105915,2.98724852,147.64,147.61,45.84]
[1751729106217,2.98724852,147.63,147.61,45.84]
[1751729106419,2.98724852,147.64,147.61,45.84]
[1751729107517,6.7723,147.63,147.61,45.84]
[1751729112223,6.7725,147.62,147.61,45.84]
[1751729112418,9.75974852,147.62,147.61,45.84]
[1751729112921,2.98724852,147.62,147.58,14.06021436]
[1751729113318,6.7734,147.6,147.58,14.06021436]
[1751729113717,2.98724852,147.61,147.58,4.29886584]
[1751729113921,9.76104852,147.59,147.58,4.29886584]
[1751729114424,2.98724852,147.59,147.51,50.08642987]
[1751729114623,2.98724852,147.55,147.51,50.08642987]
[1751729115118,6.7754,147.56,147.53,6.7763]
[1751729115324,2.98724852,147.57,147.53,2.98724852]
[1751729115524,2.98724852,147.58,147.54,2.98724852]
[1751729115822,6.775,147.57,147.54,6.776]
[1751729118627,6.7745,147.58,147.55,6.7757]
[1751729123728,6.7748,147.57,147.55,6.7757]
[1751729129628,6.7748,147.57,147.54,6.7759]
[1751729134125,6.7753,147.56,147.53,6.7765]
[1751729134430,4.67320936,147.58,147.51,45.92]
[1751729135634,6.7755,147.56,147.53,6.7765]
[1751729135835,9.76677488,147.56,147.53,6.7765]
[1751729136941,9.76677488,147.56,147.52,2.99127488]
[1751729136942,6.7758,147.55,147.52,9.76807488]
[1751729137132,6.7758,147.55,147.52,6.7768]
[1751729137340,6.7758,147.55,147.52,9.76807488]
[1751729139629,2.99127488,147.55,147.52,2.99127488]
[1751729140141,6.7764,147.54,147.52,2.99127488]
[1751729140337,6.7764,147.54,147.51,55.68857488]
[1751729141140,6.7764,147.54,147.51,52.6973]
[1751729141341,6.7764,147.54,147.51,52.7773]
[1751729141530,6.7764,147.54,147.51,55.76857488]
[1751729142040,6.7758,147.55,147.52,6.7768]
[1751729142240,6.7758,147.55,147.52,9.76807488]
[1751729143342,6.7758,147.55,147.52,6.7768]
[1751729143536,6.7758,147.55,147.52,9.76807488]
[1751729144044,9.76707488,147.55,147.52,6.7768]
[1751729144643,9.76707488,147.55,147.52,9.76807488]
[1751729145944,9.76707488,147.55,147.52,6.7768]
[1751729146145,9.76707488,147.55,147.52,9.76807488]
[1751729146843,6.7761,147.54,147.52,9.76807488]
[1751729147042,6.7761,147.54,147.52,2.99127488]
[1751729147742,6.7761,147.54,147.51,55.76857488]
[1751729149043,6.7766,147.53,147.51,46.0]
[1751729149240,2.99127488,147.52,147.51,46.0]
[1751729149442,2.99127488,147.52,147.49,584.86]
[1751729149741,2.99127488,147.51,147.47,242.7544]
[1751729149937,2.99127488,147.51,147.47,245.74567488]
[1751729150440,2.99127488,147.51,147.47,51.38567488]
[1751729150646,6.778,147.5,147.47,58.16467488]
[1751729150844,6.778,147.5,147.48,2.99127488]
[1751729151140,2.99127488,147.51,147.47,55.1734]
[1751729151141,6.7787,147.49,147.47,46.0]
[1751729151444,2.99127488,147.49,147.47,46.0]
[1751729151647,2.99127488,147.5,147.47,46.0]
[1751729151841,6.7785,147.49,147.47,46.0]
[1751729153345,9.76937488,147.5,147.47,52.7793]
[1751729153539,2.99127488,147.5,147.47,46.0]
[1751729153739,2.99127488,147.51,147.47,46.0]
[1751729153940,2.99127488,147.51,147.47,48.99127488]
[1751729154545,6.778,147.5,147.47,55.77037488]
[1751729154742,6.778,147.5,147.47,52.7791]
[1751729155547,6.778,147.5,147.47,55.77037488]
[1751729155848,6.7771,147.52,147.49,6.7783]
[1751729156049,2.99127488,147.53,147.49,2.99127488]
[1751729156238,4.8918101,147.52,147.49,2.99127488]
[1751729156440,6.7773,147.52,147.49,9.76937488]
[1751729156746,6.7773,147.52,147.49,204.30937488]
[1751729157243,6.7768,147.53,147.5,9.76917488]
[1751729157748,6.7768,147.53,147.5,6.7779]
[1751729157951,6.7771,147.52,147.49,205.993195]
[1751729158847,6.7771,147.52,147.5,6.7779]
[1751729159646,6.7768,147.53,147.5,6.7779]
[1751729160246,6.7763,147.54,147.51,6.7774]
[1751729160750,56.94111122,147.55,147.49,194.54]
[1751729160946,6.7769,147.53,147.5,6.7777]
[1751729162251,6.7769,147.53,147.51,6.7775]
[1751729162454,6.7763,147.54,147.51,6.7775]
[1751729164056,6.7766,147.53,147.5,6.7778]
[1751729165755,6.7763,147.54,147.51,6.7774]
[1751729169157,6.7759,147.55,147.52,6.7769]
[1751729169358,6.7759,147.55,147.5,4.674995]
[1751729169562,2.4222,147.58,147.52,4.674995]
[1751729169756,17.60595124,147.57,147.53,6.7763]
[1751729169964,10.83085124,147.56,147.53,6.7763]
[1751729170165,6.7751,147.57,147.53,6.7763]
[1751729170466,4.91182912,147.56,147.53,6.7763]
[1751729170665,6.7751,147.57,147.53,6.7763]
[1751729170967,4.91176112,147.56,147.53,6.7763]
[1751729171159,6.7754,147.56,147.53,6.7763]
[1751729172470,6.775,147.57,147.54,6.7761]
[1751729172763,10.84378652,147.56,147.54,6.7761]
[1751729172961,6.775,147.57,147.54,6.7761]
[1751729173160,10.8437865,147.56,147.54,6.7761]
[1751729173361,6.775,147.57,147.54,6.7761]
[1751729173564,6.775,147.57,147.55,6.7757]
[1751729173762,6.7755,147.56,147.54,194.52]
[1751729175468,6.7749,147.57,147.54,201.296]
[1751729175670,4.92396002,147.56,147.54,201.296]
[1751729175866,4.674995,147.59,147.54,201.296]
[1751729176066,6.7748,147.57,147.54,201.296]
[1751729176267,4.92396002,147.56,147.54,201.296]
[1751729176463,6.7748,147.57,147.54,201.296]
[1751729176670,4.92406351,147.56,147.54,201.296]
[1751729176865,6.7748,147.57,147.54,201.296]
[1751729177059,4.94477728,147.56,147.54,201.296]
[1751729177264,6.7748,147.57,147.54,201.296]
[1751729177573,4.94475604,147.56,147.54,201.296]
[1751729177866,9.7657357,147.57,147.54,201.296]
[1751729178069,4.94466115,147.56,147.54,201.296]
[1751729178369,9.7657357,147.57,147.54,201.296]
[1751729178560,4.94476681,147.56,147.54,201.296]
[1751729178764,9.7657357,147.57,147.54,201.296]
[1751729178963,4.94476684,147.56,147.54,201.296]
[1751729179165,9.7657357,147.57,147.54,201.296]
[1751729179361,4.94487354,147.56,147.54,201.296]
[1751729179570,6.7748,147.57,147.54,201.296]
[1751729179772,4.94487354,147.56,147.54,201.296]
[1751729179974,6.7748,147.57,147.54,201.296]
[1751729180275,4.94500523,147.56,147.54,201.296]
[1751729180572,6.7748,147.57,147.54,204.2869357]
[1751729180773,4.9449291,147.56,147.54,204.2869357]
[1751729180962,6.7748,147.57,147.54,204.2869357]
[1751729181167,4.9449291,147.56,147.54,204.2869357]
[1751729181466,6.7748,147.57,147.54,201.296]
[1751729181666,11.72008994,147.56,147.54,204.2869357]
[1751729181868,6.7752,147.56,147.54,204.2869357]
[1751729182872,6.7749,147.57,147.54,204.2869357]
[1751729183073,4.94481752,147.56,147.54,204.2869357]
[1751729183275,6.7749,147.57,147.54,204.2869357]
[1751729183474,4.94481213,147.56,147.55,6.7757]
[1751729183677,6.7749,147.57,147.54,197.5109357]
[1751729183976,6.7753,147.56,147.54,197.5109357]
[1751729184372,2.9909357,147.56,147.52,49.0109357]
[1751729184676,9.7661357,147.56,147.55,194.4]
[1751729184871,14.68941329,147.56,147.55,194.4]
[1751729186975,6.7757,147.55,147.52,6.7767]
[1751729187176,6.7757,147.55,147.53,197.3709357]
[1751729187374,6.7757,147.55,147.53,194.38]
[1751729187574,6.7757,147.55,147.53,197.3709357]
[1751729187977,6.7757,147.55,147.53,204.1474357]
[1751729190076,6.7757,147.55,147.54,194.36]
[1751729190276,11.69813447,147.55,147.54,194.36]
[1751729191778,4.92243447,147.55,147.54,194.36]
[1751729191976,6.7754,147.56,147.54,194.36]
[1751729194478,6.7754,147.56,147.54,201.1361]
[1751729194779,6.7754,147.56,147.54,204.1270357]
[1751729195780,6.7749,147.57,147.55,6.7756]
[1751729195980,6.7749,147.57,147.55,9.7665357]
[1751729196283,12.75024008,147.56,147.54,194.36]
[1751729196581,2.9909357,147.57,147.54,194.36]
[1751729196878,10.87657042,147.56,147.54,194.36]
[1751729197076,6.7752,147.56,147.54,194.36]
[1751729197474,5.97873486,147.55,147.54,194.36]
[1751729198378,4.91363324,147.55,147.54,204.1270357]
[1751729198579,2.9909357,147.59,147.54,197.3509357]
[1751729198879,17.67478138,147.58,147.55,2.9909357]
[1751729199080,10.90028138,147.57,147.56,2.9909357]
[1751729199675,10.90028138,147.57,147.56,9.7661357]
[1751729199867,10.90028138,147.57,147.56,2.9909357]
[1751729201783,10.90028138,147.57,147.55,9.7663357]
[1751729201983,6.7745,147.58,147.55,9.7663357]
[1751729202183,10.91152261,147.57,147.55,9.7663357]
[1751729202480,4.91863476,147.56,147.55,2.9909357]
[1751729203481,10.91852422,147.56,147.55,2.9909357]
[1751729206181,10.91852422,147.56,147.55,9.7666357]
[1751729207583,10.92598608,147.56,147.55,9.7666357]
[1751729214389,10.94851098,147.56,147.55,9.7666357]
[1751729218894,10.94851098,147.56,147.55,2.9909357]
[1751729219095,10.94851098,147.56,147.54,197.3509357]
[1751729219292,4.94115966,147.55,147.54,197.3509357]
[1751729219694,4.94115966,147.55,147.54,204.1270357]
[1751729223997,6.7745,147.58,147.55,6.7753]
[1751729224199,10.95895569,147.57,147.55,2.9909357]
[1751729224398,10.95895569,147.56,147.55,2.9909357]
[1751729224894,10.95895569,147.56,147.55,9.7666357]
[1751729231803,6.01713816,147.56,147.55,9.7666357]
[1751729232199,6.7737,147.6,147.57,6.7747]
[1751729232397,10.96992336,147.59,147.58,194.2]
[1751729232596,10.96992336,147.59,147.58,197.1909357]
[1751729233595,10.96992336,147.59,147.58,203.9652357]
[1751729234002,10.96992336,147.59,147.53,4.6421]
[1751729234199,10.96897264,147.58,147.55,2.9909357]
[1751729234402,2.9909357,147.59,147.55,2.9909357]
[1751729234605,10.96052747,147.58,147.55,2.9909357]
[1751729234799,2.9909357,147.59,147.54,240.1]
[1751729234993,10.96066102,147.58,147.55,2.9909357]
[1751729235199,2.9909357,147.59,147.55,2.9909357]
[1751729235402,17.73488834,147.58,147.55,9.7663357]
[1751729235605,6.7746,147.58,147.55,9.7663357]
[1751729236807,6.7746,147.58,147.56,194.28]
[1751729237906,6.7746,147.58,147.56,201.0551]
[1751729241415,6.7746,147.58,147.56,194.28]
[1751729241620,13.95701329,147.57,147.53,45.92]
[1751729241920,2.9909357,147.55,147.54,194.28]
[1751729242119,13.95701329,147.55,147.53,52.6963]
[1751729242320,9.7665357,147.56,147.54,194.32]
[1751729242620,10.96590214,147.55,147.54,194.32]
[1751729245422,17.74160214,147.55,147.54,194.28]
[1751729248221,6.7761,147.54,147.53,45.92]
[1751729248429,13.95997937,147.54,147.52,194.32]
[1751729248622,9.01478032,147.53,147.52,194.32]
[1751729248823,13.95918743,147.53,147.52,194.32]
[1751729249325,20.73598743,147.53,147.52,194.32]
[1751729250526,6.7771,147.52,147.51,194.32]
[1751729250726,11.72150711,147.52,147.51,194.32]
[1751729251127,6.7771,147.52,147.51,194.32]
[1751729251526,20.66426058,147.52,147.51,194.3]
[1751729252430,14.67586129,147.52,147.51,194.3]
[1751729252924,11.68492559,147.52,147.51,194.3]
[1751729253133,6.7771,147.52,147.51,194.3]
[1751729254634,6.7771,147.52,147.49,640.7891357]
[1751729254931,6.7771,147.52,147.5,201.0979]
[1751729257933,6.7771,147.52,147.5,194.32]
[1751729258139,2.9909357,147.51,147.49,45.92]
[1751729258435,2.9909357,147.51,147.5,194.3]
[1751729258735,2.9909357,147.51,147.49,45.92]
[1751729258736,6.778,147.5,147.49,45.92]
[1751729258940,9.7689357,147.5,147.49,240.22]
[1751729259336,2.9909357,147.5,147.45,45.96]
[1751729259533,2.9909357,147.48,147.46,194.34]
[1751729260431,6.7796,147.47,147.46,194.4]
[1751729260634,2.9909357,147.48,147.46,194.4]
[1751729260832,4.6596,147.52,147.46,194.4]
[1751729260833,2.9909357,147.49,147.46,194.4]
[1751729261135,6.7791,147.48,147.45,52.74]
[1751729261337,2.9909357,147.49,147.46,194.42]
[1751729262236,6.7793,147.48,147.46,194.42]
[1751729262431,2.9909357,147.5,147.46,197.4109357]
[1751729262838,6.7787,147.49,147.46,197.4109357]
[1751729263637,6.7789,147.48,147.46,194.42]
[1751729263838,2.9909357,147.48,147.45,45.96]
[1751729264036,2.9909357,147.48,147.46,194.48]
[1751729264241,2.9909357,147.47,147.46,194.48]
[1751729264635,6.7793,147.47,147.46,194.48]
[1751729264935,9.7702357,147.47,147.46,194.48]
[1751729265134,6.7798,147.46,147.45,45.96]
[1751729265338,9.7707357,147.46,147.45,45.96]
[1751729267140,9.7707357,147.46,147.45,194.5]
[1751729268038,9.7707357,147.46,147.44,194.58]
[1751729268236,9.7707357,147.46,147.43,6.781]
[1751729268539,9.7707357,147.46,147.44,194.58]
[1751729269643,9.7704357,147.47,147.44,201.3606]
[1751729271343,2.9909357,147.49,147.45,2.9909357]
[1751729272445,9.7696357,147.49,147.46,6.7797]
[1751729272846,9.7696357,147.49,147.47,194.6]
[1751729277649,2.9909357,147.49,147.47,201.3793]
[1751729278240,9.7693357,147.49,147.47,194.6]
[1751729278942,2.9909357,147.48,147.47,194.6]
[1751729280944,6.7784,147.49,147.47,201.3792]
[1751729281144,9.7693357,147.49,147.46,194.5]
[1751729282550,2.9909357,147.48,147.46,201.2795]
[1751729283748,6.7784,147.49,147.46,201.2795]
[1751729283950,2.9909357,147.48,147.46,201.2795]
[1751729285852,9.7698357,147.48,147.46,201.2795]
[1751729290958,2.9909357,147.48,147.46,201.2795]
[1751729294160,6.7786,147.49,147.46,201.2795]
[1751729294455,6.7786,147.49,147.47,6.7793]
[1751729294456,7.82070737,147.48,147.47,6.7793]
[1751729294755,9.7695357,147.49,147.47,6.7793]
[1751729295253,5.97663752,147.48,147.47,6.7793]
[1751729296358,9.7695357,147.49,147.47,6.7793]
[1751729298158,5.97921559,147.48,147.47,6.7793]
[1751729300158,10.81510902,147.48,147.47,6.7793]
[1751729301665,5.97921559,147.48,147.47,6.7793]
[1751729303361,10.8209295,147.48,147.47,6.7793]
[1751729304765,9.7688357,147.51,147.48,6.7785]
[1751729304962,10.83859379,147.5,147.48,6.7785]
[1751729305154,10.83859379,147.49,147.48,6.7785]
[1751729306462,9.30133432,147.53,147.5,6.7777]
[1751729306762,10.83836349,147.52,147.5,201.1177]
[1751729306961,10.83836349,147.51,147.5,201.1177]
[1751729311064,10.84403657,147.51,147.5,201.1177]
[1751729314662,10.84403657,147.51,147.5,194.34]
[1751729314868,13.83497227,147.51,147.5,194.34]
[1751729315361,20.61247227,147.51,147.5,194.34]
[1751729316072,20.61247227,147.51,147.49,46.0]
[1751729316364,9.7684357,147.51,147.49,240.32]
[1751729317071,9.7684357,147.51,147.49,247.0984]
[1751729317862,2.9909357,147.51,147.49,247.0984]
[1751729321066,10.87731272,147.5,147.49,247.0984]
[1751729321268,10.87731272,147.5,147.49,240.32]
[1751729322671,10.87731272,147.5,147.49,46.0]
[1751729322867,10.87731272,147.5,147.49,240.32]
[1751729327371,10.87731272,147.5,147.49,46.0]
[1751729327569,10.87731272,147.5,147.49,240.32]
[1751729329770,10.87731272,147.5,147.49,247.0984]
[1751729329970,2.9909357,147.51,147.49,247.0984]
[1751729330664,9.7682357,147.52,147.49,247.0984]
[1751729330870,10.88026891,147.51,147.49,247.0984]
[1751729331071,9.7682357,147.52,147.49,247.0984]
[1751729331369,10.88036899,147.51,147.49,247.0984]
[1751729331568,9.7682357,147.52,147.49,247.0984]
[1751729331768,10.88048895,147.51,147.49,247.0984]
[1751729331973,9.7682357,147.52,147.49,247.0984]
[1751729332169,10.88048895,147.51,147.49,247.0984]
[1751729332368,9.7682357,147.52,147.49,247.0984]
[1751729332568,10.88077296,147.51,147.49,247.0984]
[1751729332770,9.7682357,147.52,147.49,247.0984]
[1751729332970,10.88078046,147.51,147.49,247.0984]
[1751729333171,9.7682357,147.52,147.49,247.0984]
[1751729333373,10.88093476,147.51,147.49,247.0984]
[1751729333567,9.7682357,147.52,147.49,247.0984]
[1751729333772,10.88093756,147.51,147.49,247.0984]
[1751729333965,9.7682357,147.52,147.49,247.0984]
[1751729334169,10.8809302,147.51,147.49,247.0984]
[1751729334377,9.7682357,147.52,147.49,247.0984]
[1751729334569,10.88123044,147.51,147.49,247.0984]
[1751729334767,9.7682357,147.52,147.49,247.0984]
[1751729334976,10.87683003,147.51,147.49,247.0984]
[1751729335181,9.7682357,147.52,147.49,247.0984]
[1751729335488,10.87720567,147.51,147.49,247.0984]
[1751729335789,2.9909357,147.52,147.5,6.7779]
[1751729335987,6.7768,147.53,147.51,194.3]
[1751729336189,13.86803736,147.52,147.51,194.3]
[1751729339891,20.64503736,147.52,147.51,194.3]
[1751729340092,20.64733343,147.52,147.51,194.3]
[1751729344200,19.98769002,147.52,147.51,194.3]
[1751729344398,22.98322279,147.52,147.51,194.3]
[1751729345997,22.99142308,147.52,147.51,194.3]
[1751729349004,20.00048738,147.52,147.51,194.3]
[1751729350904,16.21442308,147.52,147.43,4.5902]
[1751729351100,2.9909357,147.5,147.45,48.9109357]
[1751729351302,13.88309275,147.49,147.46,194.28]
[1751729351506,4.88432256,147.48,147.46,194.28]
[1751729351802,4.88432256,147.47,147.46,194.28]
[1751729352308,10.89509896,147.47,147.46,194.28]
[1751729352507,10.89509896,147.47,147.46,201.0595]
[1751729353407,6.0107764,147.47,147.46,201.0595]
[1751729354610,6.0107764,147.47,147.46,194.3]
[1751729355711,6.0107764,147.47,147.45,55.6909357]
[1751729355904,9.7698357,147.48,147.46,194.3]
[1751729356203,6.0006575,147.47,147.46,194.3]
[1751729356403,9.7698357,147.48,147.46,194.3]
[1751729357611,9.7698357,147.48,147.45,55.6909357]
[1751729357908,9.7698357,147.48,147.46,194.3]
[1751729357909,6.7789,147.48,147.46,194.3]
[1751729359911,9.7695357,147.49,147.46,194.3]
[1751729360110,10.83661164,147.48,147.46,194.3]
[1751729360311,9.7695357,147.49,147.46,194.3]
[1751729360511,10.83575072,147.48,147.46,201.0798]
[1751729360811,9.7695357,147.49,147.46,201.0798]
[1751729361109,10.83576029,147.48,147.46,201.0798]
[1751729361309,9.7695357,147.49,147.46,201.0798]
[1751729361510,10.83499394,147.48,147.46,201.0798]
[1751729361712,6.7789,147.48,147.46,194.3]
[1751729361904,6.7789,147.48,147.45,55.6910357]
[1751729362102,6.7789,147.48,147.46,194.3]
[1751729363708,9.7695357,147.49,147.46,201.0798]
[1751729363907,10.81426189,147.48,147.46,201.0798]
[1751729364102,9.7695357,147.49,147.46,201.0798]
[1751729364307,10.81219118,147.48,147.46,201.0798]
[1751729364508,6.7786,147.49,147.46,201.0798]
[1751729364713,10.81181637,147.48,147.46,204.0707357]
[1751729364913,9.7695357,147.49,147.46,204.0707357]
[1751729365214,10.80948096,147.48,147.46,204.0707357]
[1751729365411,9.7695357,147.49,147.46,204.0707357]
[1751729365610,10.80902996,147.48,147.46,204.0707357]
[1751729365806,9.7695357,147.49,147.46,204.0707357]
[1751729366010,10.80902996,147.48,147.46,204.0707357]
[1751729366311,9.7695357,147.49,147.46,204.0707357]
[1751729366510,10.80854584,147.48,147.46,204.0707357]
[1751729366710,6.7793,147.47,147.45,45.92]
[1751729367012,6.7793,147.47,147.46,194.3]
[1751729367412,6.7793,147.47,147.45,45.92]
[1751729367716,6.7793,147.47,147.46,194.3]
[1751729367916,6.7798,147.46,147.43,60.3021357]
[1751729368114,6.7798,147.46,147.44,194.3]
[1751729368622,6.7798,147.46,147.44,201.0807]
[1751729369215,6.7798,147.46,147.44,204.0716357]
[1751729370113,9.7704357,147.47,147.44,204.0716357]
[1751729370419,6.7795,147.47,147.44,204.0716357]
[1751729371815,6.7795,147.47,147.44,9.7716357]
[1751729372016,6.7795,147.47,147.45,194.32]
[1751729373117,6.7795,147.47,147.46,194.32]
[1751729374818,6.32525758,147.52,147.46,194.32]
[1751729375113,6.32525758,147.52,147.46,197.3109357]
[1751729375114,2.9909357,147.5,147.46,197.3109357]
[1751729375319,17.54727738,147.49,147.46,204.0904357]
[1751729375519,10.76867738,147.48,147.46,204.0904357]
[1751729375712,6.7786,147.49,147.46,204.0904357]
[1751729375914,10.76869933,147.48,147.46,204.0904357]
[1751729376113,6.7786,147.49,147.46,204.0904357]
[1751729376315,10.76874003,147.48,147.46,204.0904357]
[1751729376513,6.7786,147.49,147.46,204.0904357]
[1751729376713,5.95791014,147.48,147.46,204.0904357]
[1751729376917,6.7786,147.49,147.46,204.0904357]
[1751729377118,5.95791014,147.48,147.46,201.0995]
[1751729377317,6.7786,147.49,147.46,201.0995]
[1751729377517,5.95803753,147.48,147.46,201.0995]
[1751729377715,6.7786,147.49,147.46,201.0995]
[1751729377916,5.95803753,147.48,147.46,201.0995]
[1751729378117,6.7786,147.49,147.46,201.0995]
[1751729378316,5.95819781,147.48,147.46,201.0995]
[1751729378623,6.779,147.48,147.46,194.32]
[1751729381715,6.7787,147.49,147.46,194.32]
[1751729382025,5.97110984,147.48,147.46,194.32]
[1751729382225,6.7787,147.49,147.46,194.32]
[1751729382428,5.97142373,147.48,147.46,194.32]
[1751729382625,6.7787,147.49,147.46,197.3109357]
[1751729383517,6.7787,147.49,147.46,204.0904357]
[1751729384025,2.9909357,147.49,147.46,194.32]
[1751729385128,6.779,147.48,147.46,194.32]
[1751729387226,6.779,147.48,147.46,201.0998]
[1751729389134,6.779,147.48,147.46,194.32]
[1751729390131,6.7786,147.49,147.46,201.0997]
[1751729390335,5.97673926,147.48,147.46,201.0997]
[1751729390539,6.7786,147.49,147.46,201.0997]
[1751729390738,5.97673926,147.48,147.46,201.0997]
[1751729390940,6.7786,147.49,147.46,201.0997]
[1751729391139,5.97673926,147.48,147.46,201.0997]
[1751729391437,6.7786,147.49,147.46,201.0997]
[1751729391739,5.97738065,147.48,147.46,204.0906357]
[1751729392038,6.7786,147.49,147.46,204.0906357]
[1751729392241,5.97738065,147.48,147.46,204.0906357]
[1751729392439,6.7786,147.49,147.46,204.0906357]
[1751729392738,10.82722084,147.48,147.46,204.0906357]
[1751729392928,6.7786,147.49,147.46,204.0906357]
[1751729393134,10.82722084,147.48,147.46,204.0906357]
[1751729393335,6.7786,147.49,147.46,204.0906357]
[1751729393536,10.82870243,147.48,147.46,201.0997]
[1751729393736,6.7786,147.49,147.46,201.0997]
[1751729393937,10.82777925,147.48,147.46,201.0997]
[1751729394235,6.7789,147.48,147.46,201.0997]
[1751729394441,6.7789,147.48,147.46,194.32]
[1751729395942,5.99235003,147.47,147.46,194.32]
[1751729398244,10.85161918,147.47,147.46,194.32]
[1751729398941,5.99235003,147.47,147.46,194.32]
[1751729399647,5.99235003,147.47,147.46,201.0998]
[1751729401646,5.99235003,147.47,147.46,204.0907357]
[1751729401943,6.7782,147.5,147.47,6.7793]
[1751729402144,10.85189799,147.49,147.46,194.32]
[1751729402339,2.9909357,147.49,147.46,201.0998]
[1751729402535,6.32525758,147.52,147.46,201.0998]
[1751729402836,2.9909357,147.49,147.46,201.0998]
[1751729403040,9.7696357,147.49,147.46,201.0998]
[1751729403339,10.85032093,147.48,147.46,201.0998]
[1751729403536,9.7696357,147.49,147.46,201.0998]
[1751729403737,10.85033612,147.48,147.46,201.0998]
[1751729404049,6.7789,147.48,147.46,201.0998]
[1751729416561,6.7786,147.49,147.47,6.7793]
[1751729416752,10.84166529,147.48,147.47,6.7793]
[1751729417753,10.84166529,147.48,147.46,204.0936245]
[1751729417953,6.7786,147.49,147.46,204.0936245]
[1751729418154,10.84221405,147.48,147.46,204.0936245]
[1751729418355,6.7786,147.49,147.46,204.0936245]
[1751729418652,10.84282973,147.48,147.46,204.0936245]
[1751729418852,6.7786,147.49,147.46,204.0936245]
[1751729419052,10.84282972,147.48,147.46,204.0936245]
[1751729419260,6.7786,147.49,147.46,204.0936245]
[1751729419465,10.84319436,147.48,147.46,204.0936245]
[1751729419658,6.7786,147.49,147.46,204.0936245]
[1751729419849,10.84319436,147.48,147.46,204.0936245]
[1751729420053,6.7786,147.49,147.46,204.0936245]
[1751729420254,10.84646946,147.48,147.46,204.0936245]
[1751729420558,6.7786,147.49,147.46,204.0936245]
[1751729420857,10.84801152,147.48,147.46,204.0936245]
[1751729421169,6.7786,147.49,147.46,204.0936245]
[1751729421462,10.8483634,147.48,147.46,204.0936245]
[1751729421660,6.7786,147.49,147.46,204.0936245]
[1751729421858,10.84841596,147.48,147.46,204.0936245]
[1751729422050,6.7786,147.49,147.46,204.0936245]
[1751729422250,10.84846009,147.48,147.46,204.0936245]
[1751729422553,6.7786,147.49,147.46,204.0936245]
[1751729422750,10.84862852,147.48,147.46,204.0936245]
[1751729423052,6.7786,147.49,147.46,204.0936245]
[1751729423252,10.8486715,147.48,147.46,204.0936245]
[1751729423459,6.7786,147.49,147.46,204.0936245]
[1751729423658,10.84977878,147.48,147.46,204.0936245]
[1751729423857,6.7786,147.49,147.46,204.0936245]
[1751729424059,10.84977757,147.48,147.46,204.0936245]
[1751729424358,6.7786,147.49,147.46,204.0936245]
[1751729424559,10.85002744,147.48,147.46,204.0936245]
[1751729424756,6.7786,147.49,147.46,204.0936245]
[1751729424957,10.86167653,147.48,147.46,204.0936245]
[1751729425157,6.7786,147.49,147.46,204.0936245]
[1751729425364,10.86181228,147.48,147.46,204.0936245]
[1751729425562,6.7786,147.49,147.46,204.0936245]
[1751729425763,10.86245642,147.48,147.46,204.0936245]
[1751729425965,6.7786,147.49,147.46,204.0936245]
[1751729426157,10.86245642,147.48,147.46,204.0936245]
[1751729426465,6.7789,147.48,147.46,204.0936245]
[1751729427366,9.31928208,147.51,147.47,9.7732245]
[1751729427568,13.19761772,147.5,147.48,194.28]
[1751729427762,10.86209092,147.49,147.48,194.28]
[1751729427963,10.86209092,147.49,147.48,197.2740245]